bitfinex/quotes_BTCUSD_20251016
["timestamp","ask_amount","ask_price","bid_price","bid_amount"]
[1760625096670,5.55234484,110640.0,110630.0,0.18935011]
[1760625096875,5.55234484,110640.0,110630.0,0.00856733]
[1760625097908,5.55234484,110640.0,110630.0,0.18935011]
[1760625098108,5.07478175,110640.0,110630.0,0.18935011]
[1760625098308,5.55234484,110640.0,110630.0,0.18935011]
[1760625098578,5.55234484,110640.0,110630.0,0.00856733]
[1760625098747,5.55234484,110640.0,110630.0,0.18935011]
[1760625098901,5.09234484,110640.0,110630.0,0.18935011]
[1760625099106,5.13234484,110640.0,110630.0,0.18935011]
[1760625099735,5.13234484,110640.0,110630.0,0.00856733]
[1760625100350,5.13234484,110640.0,110630.0,0.18935011]
[1760625101409,5.39580335,110640.0,110630.0,0.00856733]
[1760625101866,5.21503691,110640.0,110630.0,0.18935011]
[1760625102079,5.21503691,110640.0,110630.0,0.2264038]
[1760625102080,0.07845031,110640.0,110630.0,0.2264038]
[1760625102340,0.05753081,110640.0,110630.0,0.5664038]
[1760625102780,0.041,110640.0,110630.0,0.5664038]
[1760625102985,0.041,110640.0,110630.0,0.52935011]
[1760625103198,0.041,110640.0,110630.0,0.18935011]
[1760625103411,0.05759629,110640.0,110630.0,0.18935011]
[1760625103805,0.05659532,110640.0,110630.0,0.18935011]
[1760625104837,4.63292676,110640.0,110630.0,0.00856733]
[1760625105044,4.65233279,110640.0,110630.0,0.00856733]
[1760625105255,5.4273205,110640.0,110630.0,0.00856733]
[1760625105474,5.7673205,110640.0,110630.0,0.00856733]
[1760625105685,5.73492904,110640.0,110630.0,0.00856733]
[1760625105891,5.76736095,110640.0,110630.0,0.00856733]
[1760625106326,5.81594814,110640.0,110630.0,0.00856733]
[1760625106534,5.79935282,110640.0,110630.0,0.00856733]
[1760625106740,5.81599221,110640.0,110630.0,0.00856733]
[1760625106945,5.7845603,110640.0,110630.0,0.00856733]
[1760625107401,6.51217699,110640.0,110630.0,0.00856733]
[1760625107633,0.52078278,110630.0,110620.0,0.0004]
[1760625107856,5.8034148,110630.0,110620.0,0.0004]
[1760625108375,5.85211966,110630.0,110620.0,0.0004]
[1760625109001,5.8034148,110630.0,110620.0,0.0004]
[1760625109214,4.5903104,110630.0,110620.0,0.18119913]
[1760625109421,4.77110255,110630.0,110620.0,0.21739977]
[1760625109636,5.51212415,110630.0,110620.0,0.18119913]
[1760625109837,5.54459396,110630.0,110620.0,0.18119913]
[1760625110018,5.54459396,110630.0,110620.0,0.0004]
[1760625110266,5.54560318,110630.0,110620.0,0.0004]
[1760625110486,5.54460318,110630.0,110620.0,0.18119913]
[1760625110691,5.3638204,110630.0,110620.0,0.18119913]
[1760625110903,5.54460318,110630.0,110620.0,0.18119913]
[1760625111122,0.17852445,110630.0,110620.0,0.18119913]
[1760625111335,0.14605464,110630.0,110620.0,0.52119913]
[1760625111553,0.12664861,110630.0,110620.0,0.52119913]
[1760625111971,0.11,110630.0,110620.0,0.52119913]
[1760625112405,0.11,110630.0,110620.0,0.61088121]
[1760625113442,0.11,110630.0,110620.0,0.61147305]
[1760625113921,0.11,110630.0,110620.0,0.61247305]
[1760625114976,3.95046738,110650.0,110640.0,0.18076644]
[1760625115182,4.08046738,110650.0,110640.0,0.18076644]
[1760625115395,4.09712848,110650.0,110640.0,0.18076644]
[1760625115642,4.09712848,110650.0,110640.0,0.21692136]
[1760625115880,4.09712848,110650.0,110640.0,0.18076644]
[1760625117791,4.83815008,110650.0,110640.0,0.18076644]
[1760625118478,4.09712848,110650.0,110640.0,0.18076644]
[1760625118947,4.09712848,110650.0,110630.0,0.18078278]
[1760625119181,4.86250678,110650.0,110640.0,0.18076644]
[1760625119600,4.12148518,110650.0,110640.0,0.18076644]
[1760625119854,4.09712848,110650.0,110640.0,0.18076644]
[1760625120309,4.09712848,110650.0,110640.0,0.21287772]
[1760625120515,4.09712848,110650.0,110640.0,0.55287772]
[1760625121185,4.09712848,110650.0,110640.0,0.52076644]
[1760625121838,4.83815008,110650.0,110640.0,0.18076644]
[1760625122059,0.18076644,110640.0,110620.0,0.20881896]
[1760625122271,4.395565,110630.0,110620.0,0.19976819]
[1760625122486,1.04846548,110630.0,110620.0,0.18179097]
[1760625122711,5.44403048,110630.0,110620.0,0.00099184]
[1760625122931,5.78403048,110630.0,110620.0,0.00099184]
[1760625123142,5.80838718,110630.0,110620.0,0.00099184]
[1760625123589,5.82256756,110630.0,110620.0,0.00099184]
[1760625123802,5.85503737,110630.0,110620.0,0.00099184]
[1760625124016,5.83068067,110630.0,110620.0,0.00099184]
[1760625124439,5.81650029,110630.0,110620.0,0.00099184]
[1760625124647,5.79983919,110630.0,110620.0,0.00099184]
[1760625124882,5.81648439,110630.0,110620.0,0.00099184]
[1760625125125,5.83272393,110630.0,110620.0,0.00099184]
[1760625125394,4.57638047,110610.0,110600.0,0.19921986]
[1760625125635,4.75983632,110610.0,110600.0,0.19936934]
[1760625125868,0.15099262,110610.0,110600.0,0.23828022]
[1760625126102,0.15099262,110610.0,110600.0,0.22147613]
[1760625126340,5.46839469,110610.0,110600.0,0.00173343]
[1760625126772,4.72737309,110610.0,110600.0,0.00173343]
[1760625126985,5.52033383,110610.0,110600.0,0.00173343]
[1760625127206,5.54468125,110610.0,110600.0,0.00173343]
[1760625128760,5.51221802,110610.0,110600.0,0.00173343]
[1760625130242,5.54462772,110610.0,110600.0,0.00173343]
[1760625131192,5.49693288,110610.0,110600.0,0.00173343]
[1760625131817,5.86123068,110610.0,110600.0,0.00173343]
[1760625132037,5.82882098,110610.0,110600.0,0.00173343]
[1760625132245,5.86123068,110610.0,110600.0,0.00173343]
[1760625132478,5.82877194,110610.0,110600.0,0.00173343]
[1760625132688,5.82777194,110610.0,110600.0,0.00173343]
[1760625134341,5.06245886,110610.0,110600.0,0.00173343]
[1760625134548,4.70581366,110610.0,110600.0,0.18256525]
[1760625135164,4.70738876,110610.0,110600.0,0.00173343]
[1760625135549,5.44840462,110610.0,110600.0,0.00173343]
[1760625135763,5.78840462,110610.0,110600.0,0.00173343]
[1760625135973,5.82930263,110610.0,110600.0,0.00173343]
[1760625136393,5.78840462,110610.0,110600.0,0.00173343]
[1760625137034,5.78940462,110610.0,110600.0,0.00173343]
[1760625139697,5.80358757,110610.0,110600.0,0.00173343]
[1760625139912,5.80358757,110610.0,110600.0,0.18256525]
[1760625140144,4.52232305,110610.0,110600.0,0.2189052]
[1760625140354,0.12675805,110610.0,110600.0,0.2189052]
[1760625140588,0.1125751,110610.0,110600.0,0.2189052]
[1760625141022,0.29339057,110610.0,110600.0,0.18256525]
[1760625141438,0.29339057,110610.0,110600.0,0.00173343]
[1760625141439,5.42997717,110610.0,110600.0,0.00173343]
[1760625141650,0.8535967,110610.0,110600.0,0.18256525]
[1760625141891,0.1115751,110610.0,110600.0,0.18256525]
[1760625143393,0.11,110610.0,110600.0,0.18256525]
[1760625143596,0.11,110610.0,110600.0,0.27224733]
[1760625143838,0.11,110610.0,110600.0,0.61224733]
[1760625145346,0.11,110610.0,110600.0,1.39045121]
[1760625145793,0.11,110610.0,110600.0,0.64942961]
[1760625146210,0.11,110610.0,110600.0,0.67017938]
[1760625147223,0.17,110640.0,110630.0,0.18078278]
[1760625147433,3.95204212,110650.0,110640.0,0.18076644]
[1760625147639,4.06204212,110650.0,110640.0,0.18076644]
[1760625148307,4.0282165,110650.0,110640.0,0.18076644]
[1760625148922,3.84746639,110650.0,110640.0,0.18076644]
[1760625151952,3.84589165,110650.0,110640.0,0.18076644]
[1760625152483,3.84589165,110650.0,110640.0,0.22053718]
[1760625154737,3.84589165,110650.0,110640.0,0.24095469]
[1760625155194,3.84589165,110650.0,110640.0,0.58095469]
[1760625155400,3.84589165,110650.0,110640.0,1.44784869]
[1760625156226,3.84589165,110650.0,110640.0,1.44884869]
[1760625157054,3.28501728,110650.0,110640.0,1.44884869]
[1760625157478,3.28501728,110650.0,110640.0,1.44784869]
[1760625157893,3.28501728,110650.0,110640.0,1.44884869]
[1760625158101,2.85341697,110650.0,110640.0,1.44784869]
[1760625158304,2.50631615,110650.0,110640.0,1.44784869]
[1760625158516,2.37815344,110650.0,110640.0,1.44884869]
[1760625158723,2.14094845,110650.0,110640.0,1.44884869]
[1760625159107,1.74369408,110650.0,110640.0,1.44884869]
[1760625159370,0.7970971,110650.0,110640.0,1.40807795]
[1760625159580,0.71801959,110650.0,110640.0,1.41007795]
[1760625160211,0.08507005,110650.0,110640.0,2.15109955]
[1760625160419,0.51798804,110720.0,110710.0,0.18065215]
[1760625160629,4.395565,110710.0,110700.0,0.18066847]
[1760625160835,4.525565,110710.0,110700.0,0.18066847]
[1760625161042,0.13,110710.0,110700.0,0.18066847]
[1760625161673,4.395565,110700.0,110680.0,0.18970822]
[1760625161881,0.13,110700.0,110680.0,0.18970822]
[1760625162302,0.13,110700.0,110690.0,0.18068479]
[1760625162715,0.13157366,110700.0,110690.0,0.18068479]
[1760625163342,0.40193867,110700.0,110680.0,0.001]
[1760625163558,0.47834348,110690.0,110680.0,0.001]
[1760625163771,0.13,110690.0,110680.0,0.18170112]
[1760625163976,0.13,110690.0,110680.0,0.001]
[1760625164190,0.7980625,110690.0,110660.0,0.19871088]
[1760625164395,0.47834348,110680.0,110660.0,0.19872129]
[1760625164620,0.77807971,110680.0,110640.0,0.01798804]
[1760625164844,0.77807971,110680.0,110640.0,0.19874737]
[1760625164845,4.57629902,110660.0,110640.0,0.19874737]
[1760625165058,0.47834348,110650.0,110640.0,0.01798804]
[1760625165314,0.77909359,110650.0,110640.0,0.01798804]
[1760625165524,4.395565,110640.0,110620.0,0.18079331]
[1760625165736,0.13,110640.0,110620.0,0.18983326]
[1760625166170,0.13,110640.0,110630.0,0.18078278]
[1760625166387,0.13,110640.0,110630.0,0.1947924]
[1760625166617,0.13,110640.0,110630.0,0.18078278]
[1760625167469,0.13,110640.0,110620.0,0.18079892]
[1760625167470,0.78910992,110640.0,110620.0,0.18079892]
[1760625167746,0.13,110640.0,110620.0,0.18079892]
[1760625167999,0.13,110640.0,110630.0,0.18178278]
[1760625168215,0.13,110640.0,110630.0,0.19763852]
[1760625168428,0.13,110640.0,110630.0,0.18178278]
[1760625168644,0.13,110640.0,110630.0,0.52078278]
[1760625168858,0.13,110640.0,110630.0,1.03530854]
[1760625169038,0.13,110640.0,110630.0,1.21795866]
[1760625170115,0.13,110640.0,110630.0,0.73961518]
[1760625170326,0.13,110640.0,110630.0,1.21795866]
[1760625171367,0.13,110640.0,110630.0,1.21895866]
[1760625172834,0.13,110640.0,110630.0,0.7044329]
[1760625173049,0.13,110640.0,110630.0,1.21895866]
[1760625174289,0.13,110640.0,110630.0,0.74061518]
[1760625174495,0.13,110640.0,110630.0,1.21895866]
[1760625176482,0.13,110640.0,110630.0,1.18277638]
[1760625176690,0.13,110640.0,110630.0,1.21895866]
[1760625176882,0.13,110640.0,110630.0,0.55796506]
[1760625177581,0.13,110640.0,110630.0,0.55696506]
[1760625177963,0.13,110640.0,110630.0,0.55796506]
[1760625178733,0.13,110640.0,110630.0,0.18178278]
[1760625179162,0.13,110640.0,110630.0,0.52178278]
[1760625180220,0.13,110640.0,110630.0,0.52078278]
[1760625180440,0.13,110640.0,110630.0,0.52178278]
[1760625181068,0.04367594,110660.0,110630.0,0.52178278]
[1760625181267,0.01373759,110660.0,110650.0,0.82738098]
[1760625181443,0.0324097,110720.0,110710.0,0.18065215]
[1760625181616,0.14549715,110720.0,110710.0,0.18065215]
[1760625181820,0.13716395,110720.0,110710.0,0.18065215]
[1760625182460,0.12049754,110720.0,110710.0,0.18065215]
[1760625183093,0.13716347,110720.0,110690.0,0.1897027]
[1760625183298,3.843067,110710.0,110690.0,0.1897027]
[1760625183509,3.843067,110700.0,110690.0,0.18068479]
[1760625183721,0.13,110700.0,110680.0,0.01798804]
[1760625183950,3.843067,110670.0,110650.0,0.19873696]
[1760625184154,0.31072009,110670.0,110650.0,0.01798804]
[1760625184577,0.18073377,110660.0,110640.0,0.18979484]
[1760625184797,0.13,110660.0,110650.0,0.18075011]
[1760625185004,0.13049723,110660.0,110650.0,0.18075011]
[1760625185632,0.13049723,110660.0,110640.0,0.18979484]
[1760625186281,0.13049723,110660.0,110650.0,0.18075011]
[1760625188112,0.13049723,110660.0,110650.0,0.18175011]
[1760625189078,0.13049723,110660.0,110650.0,1.03627587]
[1760625189513,0.13049723,110660.0,110650.0,0.55793239]
[1760625189902,0.13049723,110660.0,110650.0,0.55693239]
[1760625190104,0.13049723,110660.0,110650.0,1.03527587]
[1760625190697,0.13049723,110660.0,110650.0,1.03627587]
[1760625191041,0.01856643,110710.0,110680.0,0.00903505]
[1760625191183,0.15538023,110710.0,110690.0,0.18068479]
[1760625191383,0.12014916,110710.0,110700.0,0.18066847]
[1760625191585,0.12014916,110710.0,110690.0,0.18068479]
[1760625191810,0.31922619,110710.0,110690.0,0.18068479]
[1760625192012,0.12014916,110710.0,110700.0,0.18066847]
[1760625192172,0.12014916,110710.0,110690.0,0.18068479]
[1760625192372,0.30080336,110710.0,110690.0,0.18068479]
[1760625193089,0.77914684,110710.0,110690.0,0.18068209]
[1760625193288,0.32024846,110710.0,110690.0,0.18068434]
[1760625193407,0.30080336,110710.0,110690.0,0.18068434]
[1760625193615,3.843067,110700.0,110680.0,0.18971984]
[1760625193815,0.12,110700.0,110690.0,0.18068479]
[1760625194262,0.12157368,110700.0,110690.0,0.18068479]
[1760625197289,0.05,110700.0,110690.0,0.18068479]
[1760625197711,0.05,110700.0,110690.0,0.18168479]
[1760625199766,0.23066847,110700.0,110680.0,0.18069775]
[1760625199983,0.70901195,110700.0,110680.0,0.18069775]
[1760625200183,0.70901195,110700.0,110670.0,0.54769396]
[1760625200184,0.70901196,110700.0,110670.0,0.54769396]
[1760625200391,0.70901196,110700.0,110640.0,0.18979484]
[1760625200392,4.32141048,110680.0,110640.0,0.18979484]
[1760625200588,4.32141048,110670.0,110650.0,0.19872412]
[1760625200819,0.11,110670.0,110660.0,0.18073377]
[1760625201426,0.29071744,110670.0,110650.0,0.37618228]
[1760625201569,0.18073377,110660.0,110650.0,0.34]
[1760625201773,0.18073377,110660.0,110650.0,0.00014916]
[1760625201774,0.78907725,110660.0,110650.0,0.00014916]
[1760625201971,0.60834348,110660.0,110650.0,0.00014916]
[1760625202176,0.60834348,110660.0,110650.0,0.18089927]
[1760625202376,0.78907725,110660.0,110650.0,0.00014916]
[1760625202581,0.32922816,110660.0,110650.0,0.00014916]
[1760625202780,0.33080248,110660.0,110650.0,0.00014916]
[1760625202956,0.80914596,110660.0,110650.0,0.00014916]
[1760625203213,0.62841219,110660.0,110650.0,0.00014916]
[1760625203427,0.80914596,110660.0,110650.0,0.00014916]
[1760625204496,0.18075365,110650.0,110630.0,0.19734417]
[1760625204725,0.78909713,110650.0,110630.0,0.01706004]
[1760625204931,0.78909713,110650.0,110630.0,0.1978427]
[1760625205178,0.13,110650.0,110630.0,0.18126911]
[1760625205387,0.13,110650.0,110640.0,0.18076644]
[1760625207030,0.60834348,110650.0,110630.0,0.18128001]
[1760625207233,0.60834348,110650.0,110640.0,0.18076644]
[1760625207439,0.60834348,110650.0,110630.0,0.18128001]
[1760625207440,0.78909501,110650.0,110630.0,0.18128001]
[1760625207652,0.78909501,110650.0,110630.0,0.18127976]
[1760625207859,0.60834348,110650.0,110640.0,0.18076644]
[1760625208107,0.13,110650.0,110640.0,0.18176644]
[1760625208326,0.31075011,110650.0,110640.0,0.001]
[1760625208572,4.63216059,110650.0,110640.0,0.001]
[1760625208809,4.24349919,110650.0,110640.0,0.001]
[1760625209045,4.63216059,110650.0,110640.0,0.001]
[1760625209278,0.18076644,110640.0,110630.0,0.00049723]
[1760625209542,0.59834348,110640.0,110630.0,0.18127991]
[1760625209743,0.30076644,110640.0,110630.0,0.00049723]
[1760625210021,0.12,110640.0,110630.0,0.18128001]
[1760625210713,0.30076644,110640.0,110630.0,0.00049723]
[1760625211185,0.12,110640.0,110630.0,0.18128001]
[1760625211861,0.12,110640.0,110630.0,0.65962349]
[1760625212360,0.12,110640.0,110630.0,0.00049723]
[1760625212639,0.12,110640.0,110630.0,0.18128001]
[1760625213298,0.12,110640.0,110630.0,0.18228001]
[1760625213558,0.12,110640.0,110630.0,0.18128001]
[1760625213982,0.12,110640.0,110630.0,0.21846229]
[1760625214189,0.12,110640.0,110630.0,1.03680577]
[1760625214842,0.12,110640.0,110630.0,0.55846229]
[1760625217439,0.12,110640.0,110630.0,1.03680577]
[1760625217861,0.00157434,110670.0,110660.0,0.18073377]
[1760625218079,0.14157434,110670.0,110660.0,0.18073377]
[1760625218286,0.14,110670.0,110660.0,0.18073377]
[1760625218722,0.14,110670.0,110660.0,1.03525953]
[1760625219172,0.14,110670.0,110660.0,0.55691605]
[1760625219382,0.09,110670.0,110660.0,1.12494965]
[1760625219598,0.09,110670.0,110660.0,1.12594965]
[1760625219844,0.09,110670.0,110660.0,1.12494965]
[1760625220053,0.09,110670.0,110660.0,1.12594965]
[1760625223224,0.09,110670.0,110660.0,1.21878965]
[1760625223431,0.18968624,110710.0,110690.0,0.18068479]
[1760625223432,0.18222746,110710.0,110690.0,0.18068479]
[1760625223665,0.18222596,110710.0,110690.0,0.18068479]
[1760625223872,0.14157381,110710.0,110700.0,0.18066847]
[1760625224083,0.32222596,110710.0,110690.0,0.18068479]
[1760625224719,0.15973784,110710.0,110700.0,0.18066847]
[1760625225390,0.14014927,110710.0,110700.0,0.18066847]
[1760625225878,0.14014927,110710.0,110700.0,0.52066847]
[1760625226076,0.14014927,110710.0,110700.0,0.55685075]
[1760625226790,0.14014927,110710.0,110700.0,0.52066847]
[1760625227002,0.14014927,110710.0,110700.0,0.18066847]
[1760625228151,0.32080142,110710.0,110690.0,0.18068479]
[1760625228371,0.32080142,110710.0,110690.0,0.18068358]
[1760625228601,0.32080142,110710.0,110690.0,0.18068476]
[1760625228823,0.32080142,110710.0,110690.0,0.18068479]
[1760625229281,0.14014927,110710.0,110690.0,0.18068479]
[1760625229488,0.14014927,110710.0,110700.0,0.18066847]
[1760625229910,0.32080142,110710.0,110690.0,0.18068479]
[1760625230328,0.14014927,110710.0,110700.0,0.18066847]
[1760625231191,0.32080142,110710.0,110690.0,0.18068479]
[1760625232057,0.32080142,110710.0,110680.0,0.18973617]
[1760625232264,0.32237504,110710.0,110690.0,0.18068024]
[1760625232469,0.32237504,110710.0,110690.0,0.18068479]
[1760625233958,0.14172289,110710.0,110690.0,0.18068479]
[1760625234183,0.14014927,110710.0,110700.0,0.19873531]
[1760625234389,0.14014927,110710.0,110700.0,0.18066847]
[1760625235104,0.14014927,110710.0,110700.0,0.21685075]
[1760625235777,0.14014927,110710.0,110700.0,0.18066847]
[1760625237749,1.06064438,110710.0,110680.0,0.34]
[1760625237973,0.18066847,110700.0,110680.0,0.18068983]
[1760625238208,1.06954485,110700.0,110670.0,0.01798804]
[1760625238459,0.18068479,110690.0,110670.0,0.53869917]
[1760625238694,0.18071583,110680.0,110650.0,0.18977287]
[1760625238943,0.18071744,110670.0,110650.0,0.18977287]
[1760625239171,0.18071744,110670.0,110640.0,0.20776425]
[1760625239172,4.16282031,110670.0,110640.0,0.20776425]
[1760625239394,0.31975331,110670.0,110650.0,0.18074385]
[1760625239635,0.13,110670.0,110660.0,0.18073377]
[1760625240113,0.32933503,110670.0,110650.0,0.18074924]
[1760625240326,0.32933503,110670.0,110650.0,0.18074622]
[1760625240971,0.14861759,110670.0,110660.0,0.18073377]
[1760625241181,0.14861759,110670.0,110650.0,0.18074622]
[1760625241182,0.32933503,110670.0,110650.0,0.18074622]
[1760625241672,0.18073377,110660.0,110640.0,0.18977621]
[1760625241888,0.31073377,110660.0,110650.0,0.18075011]
[1760625242320,0.13,110660.0,110650.0,0.18075011]
[1760625242534,0.31073377,110660.0,110640.0,0.18977621]
[1760625242759,0.13,110660.0,110650.0,0.18075011]
[1760625242986,1.09247844,110660.0,110630.0,0.34]
[1760625243205,0.18075011,110650.0,110620.0,0.18978189]
[1760625243426,1.05059307,110650.0,110630.0,0.18078167]
[1760625243647,0.31075355,110650.0,110630.0,0.18078167]
[1760625244079,0.31075355,110650.0,110630.0,0.1807827]
[1760625244296,0.18076644,110640.0,110620.0,0.18079176]
[1760625244512,0.18078278,110630.0,110610.0,0.20836077]
[1760625244721,0.31078278,110630.0,110610.0,0.19938923]
[1760625245142,0.31078332,110630.0,110610.0,0.18140628]
[1760625245341,0.13,110630.0,110620.0,0.18079913]
[1760625245794,0.13,110630.0,110620.0,0.00049723]
[1760625245795,1.05062574,110630.0,110620.0,0.00049723]
[1760625246454,0.3123576,110630.0,110620.0,0.00049723]
[1760625247112,1.05220056,110630.0,110620.0,0.00049723]
[1760625247326,5.25469215,110630.0,110620.0,0.00049723]
[1760625248781,4.51484919,110630.0,110620.0,0.00049723]
[1760625249027,4.38484919,110630.0,110620.0,0.00049723]
[1760625249227,0.15312561,110630.0,110620.0,0.00049723]
[1760625249854,0.15155079,110630.0,110620.0,0.00049723]
[1760625250310,0.01,110630.0,110620.0,0.19937627]
[1760625250517,0.01,110630.0,110620.0,0.18129636]
[1760625250718,0.01,110630.0,110620.0,0.1993076]
[1760625251174,0.19078278,110630.0,110620.0,0.00049723]
[1760625251400,0.93062574,110630.0,110620.0,0.00049723]
[1760625252035,0.01,110630.0,110620.0,0.18129636]
[1760625252676,0.01,110630.0,110620.0,1.2973216]
[1760625252884,0.01,110630.0,110620.0,1.38701172]
[1760625253098,0.01,110630.0,110620.0,1.47981172]
[1760625253301,0.01,110630.0,110620.0,1.38701172]
[1760625253527,0.01,110630.0,110620.0,1.47981172]
[1760625254853,0.01,110630.0,110620.0,0.73996876]
[1760625255071,0.01,110630.0,110620.0,0.55847864]
[1760625255511,0.01,110630.0,110620.0,0.21747864]
[1760625255719,0.01,110630.0,110620.0,0.18329636]
[1760625255929,0.01,110630.0,110620.0,0.18129636]
[1760625256356,0.01,110630.0,110620.0,0.18229636]
[1760625258047,0.19078278,110630.0,110620.0,0.00149723]
[1760625258466,0.01,110630.0,110620.0,0.18229636]
[1760625258677,0.01,110630.0,110620.0,0.20037627]
[1760625258901,0.01,110630.0,110620.0,0.18229636]
[1760625259079,0.01,110630.0,110620.0,0.18129636]
[1760625259971,0.01,110630.0,110620.0,0.18229636]
[1760625260643,0.01,110630.0,110620.0,0.52229636]
[1760625262128,0.01,110630.0,110620.0,1.2983216]
[1760625262340,0.01,110630.0,110620.0,1.3910816]
[1760625262567,0.01,110630.0,110620.0,0.55847864]
[1760625262787,0.01,110630.0,110620.0,0.55747864]
[1760625262996,0.01,110630.0,110620.0,0.52129636]
[1760625263204,0.01,110630.0,110620.0,0.55847864]
[1760625263617,0.01,110630.0,110620.0,0.52229636]
[1760625264275,0.01,110630.0,110620.0,0.52129636]
[1760625264689,0.01,110630.0,110620.0,0.64816876]
[1760625264899,0.01,110630.0,110620.0,1.38701172]
[1760625265335,0.01,110630.0,110620.0,1.38801172]
[1760625265588,0.00157451,110660.0,110650.0,0.18075011]
[1760625265839,0.1,110670.0,110660.0,0.18073377]
[1760625266063,0.21,110670.0,110660.0,0.18073377]
[1760625266283,0.21,110670.0,110660.0,0.92057673]
[1760625266496,0.21,110670.0,110660.0,0.95675901]
[1760625266938,0.21,110670.0,110660.0,0.55691605]
[1760625267158,1e-08,110670.0,110660.0,0.64660617]
[1760625267369,1e-08,110670.0,110660.0,1.38644913]
[1760625268036,1e-08,110670.0,110660.0,0.64660617]
[1760625268249,1e-08,110670.0,110660.0,0.37618228]
[1760625268458,0.12000001,110670.0,110660.0,0.21691605]
[1760625268667,0.30071745,110670.0,110650.0,0.52073751]
[1760625268878,0.30071745,110670.0,110660.0,0.001]
[1760625269094,0.1807339,110660.0,110650.0,0.03618228]
[1760625269312,0.3007339,110660.0,110630.0,0.3005417]
[1760625269550,0.18075021,110650.0,110630.0,0.20780517]
[1760625269760,0.18076644,110640.0,110630.0,0.01798804]
[1760625269963,0.12,110640.0,110620.0,0.18983908]
[1760625270400,0.12,110640.0,110630.0,0.18078278]
[1760625270808,0.12,110640.0,110620.0,0.18983908]
[1760625271049,0.30077058,110640.0,110610.0,0.20842731]
[1760625271268,0.18078278,110630.0,110610.0,0.01857996]
[1760625271480,0.13,110630.0,110620.0,0.18079913]
[1760625271938,0.31078278,110630.0,110610.0,0.1813956]
[1760625272140,0.13,110630.0,110620.0,0.18079913]
[1760625272523,0.31078278,110630.0,110620.0,0.18129636]
[1760625272677,0.13,110630.0,110620.0,0.18129636]
[1760625273325,0.13,110630.0,110620.0,1.2973216]
[1760625273522,0.13,110630.0,110620.0,0.55747864]
[1760625273722,0.13,110630.0,110620.0,0.18129636]
[1760625274336,0.13,110630.0,110620.0,0.18229636]
[1760625274530,0.13,110630.0,110620.0,0.18129636]
[1760625274734,0.31078278,110630.0,110620.0,0.00049723]
[1760625274950,0.31078278,110630.0,110620.0,0.18129636]
[1760625275159,0.13,110630.0,110620.0,0.18129636]
[1760625275354,0.31078278,110630.0,110620.0,0.18129636]
[1760625275555,0.31078278,110630.0,110620.0,0.00049723]
[1760625275736,0.13,110630.0,110620.0,0.18129636]
[1760625276497,0.13,110630.0,110620.0,0.92113932]
[1760625276699,0.13,110630.0,110620.0,0.18129636]
[1760625276929,0.13,110630.0,110620.0,0.92113932]
[1760625277492,0.13,110630.0,110620.0,0.18229636]
[1760625277695,0.13,110630.0,110620.0,0.9583216]
[1760625277916,0.13,110630.0,110620.0,0.9573216]
[1760625278245,0.13,110630.0,110620.0,0.9583216]
[1760625278828,0.13,110630.0,110620.0,0.21847864]
[1760625279024,0.13,110630.0,110620.0,0.18229636]
[1760625279680,0.13,110630.0,110620.0,0.9583216]
[1760625279889,0.13,110630.0,110620.0,1.2983216]
[1760625280088,0.13,110630.0,110620.0,1.2973216]
[1760625280471,0.13,110630.0,110620.0,0.55847864]
[1760625280667,0.13,110630.0,110620.0,1.2973216]
[1760625280880,0.13,110630.0,110620.0,1.38701172]
[1760625281241,0.25277219,110670.0,110650.0,0.18075011]
[1760625281448,0.21560849,110670.0,110650.0,0.18075011]
[1760625281655,0.30975331,110670.0,110650.0,0.18074872]
[1760625281808,0.33403405,110670.0,110650.0,0.18074872]
[1760625282199,0.30975331,110670.0,110650.0,0.18074872]
[1760625282566,0.30975331,110670.0,110660.0,0.18073377]
[1760625282772,0.30975331,110670.0,110650.0,0.18074872]
[1760625283459,0.09371373,110670.0,110650.0,0.18074872]
[1760625283692,0.27445973,110670.0,110650.0,0.18074872]
[1760625283903,0.27445973,110670.0,110650.0,4.972e-05]
[1760625283904,0.18073377,110660.0,110650.0,4.972e-05]
[1760625284136,0.31073377,110660.0,110650.0,4.972e-05]
[1760625285038,0.31073377,110660.0,110650.0,0.18079983]
[1760625285475,0.31073377,110660.0,110650.0,4.972e-05]
[1760625286137,0.7893207,110660.0,110650.0,4.972e-05]
[1760625286346,0.80876188,110660.0,110650.0,4.972e-05]
[1760625286967,4.99182888,110660.0,110650.0,4.972e-05]
[1760625287404,4.99340336,110660.0,110650.0,4.972e-05]
[1760625288038,0.18079913,110620.0,110610.0,0.00059192]
[1760625288251,0.18079913,110620.0,110610.0,0.00108915]
[1760625288252,1.12938606,110620.0,110610.0,0.00108915]
[1760625288460,1.14882724,110620.0,110610.0,0.00108915]
[1760625288667,5.01617498,110620.0,110610.0,0.00108915]
[1760625289299,4.53758805,110620.0,110610.0,0.00108915]
[1760625289499,0.67024031,110620.0,110610.0,0.00108915]
[1760625289708,0.68826658,110620.0,110610.0,0.00108915]
[1760625290129,5.03420125,110620.0,110610.0,0.00208915]
[1760625290346,5.00992051,110620.0,110610.0,0.00208915]
[1760625290550,0.14944118,110620.0,110610.0,0.00108915]
[1760625290756,0.13,110620.0,110610.0,0.18190462]
[1760625290968,0.131,110620.0,110610.0,0.00108915]
[1760625291169,0.131,110620.0,110610.0,0.19998616]
[1760625291378,0.131,110620.0,110610.0,0.18190462]
[1760625291597,0.13,110620.0,110610.0,0.18190462]
[1760625292447,0.13,110620.0,110610.0,0.66049155]
[1760625292656,0.13,110620.0,110610.0,0.6785805]
[1760625292856,0.13,110620.0,110610.0,0.66049155]
[1760625293713,0.13,110620.0,110610.0,0.66149155]
[1760625294562,0.13,110620.0,110610.0,0.00208915]
[1760625294785,0.31079913,110620.0,110610.0,0.18290462]
[1760625295003,0.31079913,110620.0,110610.0,0.00108915]
[1760625296307,0.31079913,110620.0,110610.0,0.00208915]
[1760625296526,0.78938606,110620.0,110610.0,0.00208915]
[1760625296801,0.78938606,110620.0,110610.0,0.00108915]
[1760625297061,0.31079913,110620.0,110610.0,0.00108915]
[1760625297294,0.31079913,110620.0,110610.0,0.18190462]
[1760625297537,0.31079913,110620.0,110610.0,0.00108915]
[1760625298730,0.31079913,110620.0,110610.0,0.18190462]
[1760625299175,0.31079913,110620.0,110610.0,0.00108915]
[1760625300317,0.13,110620.0,110610.0,0.01917069]
[1760625300530,0.13,110620.0,110610.0,0.19998616]
[1760625300760,0.13,110620.0,110610.0,0.18190462]
[1760625300990,0.13,110620.0,110610.0,0.66049155]
[1760625301195,0.13,110620.0,110610.0,1.00049155]